[Event "FIDE World Junior U20-ch Girls 2025"]
[Site "Petrovac"]
[Date "2025.02.26"]
[Round "2.4"]
[White "Khamdamova, Afruza"]
[Black "Karimova, Guldona"]
[Result "1/2-1/2"]
[Annotator "ChessBase"]
[ECO "B40"]
[WhiteElo "2354"]
[BlackElo "2200"]
[PlyCount "76"]
[EventDate "2025.02.23"]
[EventType "swiss"]
[EventCountry "MNE"]
[SourceTitle "playchess.com"]
[Source "ChessBase"]
[SourceQuality "1"]
[TimeControl "40/5400+30:1800+30"]

1. e4 {[%emt 0:00:07]} c5 {[%emt 0:00:07]} 2. Nf3 {[%emt 0:00:06]} Nc6 {[%emt 0:00:05]} 3. d4 {[%emt 0:00:04]} cxd4 {[%emt 0:00:02]} 4. Nxd4 {[%emt 0:00:06]} Nf6 {[%emt 0:00:05]} 5. Nc3 {[%emt 0:00:06]} e6 {[%emt 0:00:26]} 6. Ndb5 {[%emt 0:00:41]} Bb4 {[%emt 0:00:10]} 7. a3 {[%emt 0:00:39]} Bxc3+ {[%emt 0:00:06]} 8. Nxc3 {[%emt 0:00:06]} d5 {[%emt 0:00:08]} 9. exd5 {[%emt 0:02:16]} exd5 {[%emt 0:00:03]} 10. Bd3 {[%emt 0:00:06]} O-O {[%emt 0:00:07]} 11. O-O {[%emt 0:00:04]} d4 {[%emt 0:00:24]} 12. Ne2 {[%emt 0:00:32]} Bg4 {[%emt 0:00:17]} 13. f3 {[%emt 0:02:26]} Bh5 {[%emt 0:00:11]} 14. Nf4 {[%emt 0:04:07]} Bg6 {[%emt 0:00:26]} 15. Nxg6 {[%emt 0:00:17]} hxg6 {[%emt 0:00:02]} 16. f4 {[%emt 0:03:48]} Ne7 {[%emt 0:01:45]} 17. Bd2 {[%emt 0:09:03]} Nf5 {[%emt 0:05:38]} 18. Qf3 {[%emt 0:00:40]} Qb6 {[%emt 0:01:39]} 19. a4 {[%emt 0:16:50]} Nd7 {[%emt 0:16:09]} 20. a5 {[%emt 0:01:52]} Qd6 {[%emt 0:21:38]} 21. b4 {[%emt 0:09:34]} Qc7 {[%emt 0:16:33]} 22. Rfc1 {[%emt 0:02:38]} Nf6 {[%emt 0:03:32]} 23. c4 {[%emt 0:02:53]} dxc3 {[%emt 0:01:07]} 24. Bxc3 {[%emt 0:01:22]} Rac8 {[%emt 0:03:02]} 25. Bxf6 {[%emt 0:20:41]} Qxc1+ {[%emt 0:00:06]} 26. Rxc1 {[%emt 0:00:02]} Rxc1+ {[%emt 0:00:06]} 27. Kf2 {[%emt 0:00:01]} gxf6 {[%emt 0:00:11]} 28. Qxb7 {[%emt 0:02:30]} Rd8 {[%emt 0:00:51]} 29. Bxf5 {[%emt 0:00:31]} gxf5 {[%emt 0:00:02]} 30. h3 {[%emt 0:00:41]} Rc4 {[%emt 0:02:19]} 31. Kg3 {[%emt 0:06:20]} Kg7 {[%emt 0:01:14]} 32. b5 {[%emt 0:01:04]} Rd3+ {[%emt 0:00:43]} 33. Kh2 {[%emt 0:00:04]} Rb3 {[%emt 0:00:27]} 34. a6 {[%emt 0:06:15]} Rxf4 {[%emt 0:04:48]} 35. Qxa7 {[%emt 0:01:32]} Rxb5 {[%emt 0:00:01]} 36. Qc7 {[%emt 0:00:06]} Ra4 {[%emt 0:00:14]} 37. Qg3+ {[%emt 0:00:26]} Kh7 {[%emt 0:00:04]} 38. Qd6 {[%emt 0:04:00]} Kg7 {[%emt 0:00:29]} 1/2-1/2

[Event "FIDE World Junior U20-ch Girls 2025"]
[Site "Petrovac"]
[Date "2025.02.26"]
[Round "2.5"]
[White "Tashkinova, Sofiia"]
[Black "Nurman, Alua"]
[Result "0-1"]
[Annotator "ChessBase"]
[ECO "B90"]
[WhiteElo "2197"]
[BlackElo "2336"]
[PlyCount "54"]
[EventDate "2025.02.23"]
[EventType "swiss"]
[EventCountry "MNE"]
[SourceTitle "playchess.com"]
[Source "ChessBase"]
[SourceQuality "1"]
[TimeControl "40/5400+30:1800+30"]

1. e4 {[%emt 0:01:24]} c5 {[%emt 0:00:05]} 2. Nf3 {[%emt 0:00:08]} d6 {[%emt 0:00:08]} 3. d4 {[%emt 0:00:08]} cxd4 {[%emt 0:00:06]} 4. Nxd4 {[%emt 0:00:07]} Nf6 {[%emt 0:00:05]} 5. Nc3 {[%emt 0:00:11]} a6 {[%emt 0:00:12]} 6. Bc4 {[%emt 0:00:29]} e6 {[%emt 0:00:24]} 7. a4 {[%emt 0:00:15]} Be7 {[%emt 0:05:29]} 8. O-O {[%emt 0:00:25]} O-O {[%emt 0:01:51]} 9. Be3 {[%emt 0:00:17]} Qc7 {[%emt 0:07:31]} 10. Qe2 {[%emt 0:00:50]} Nc6 {[%emt 0:01:52]} 11. Nxc6 {[%emt 0:00:20]} Qxc6 {[%emt 0:02:55]} 12. Bd3 {[%emt 0:05:31]} Nd7 {[%emt 0:16:57]} 13. f4 {[%emt 0:04:57]} Bf6 {[%emt 0:00:40]} 14. Bd2 {[%emt 0:07:22]} Qc7 {[%emt 0:03:48]} 15. g4 {[%emt 0:11:57]} Bd4+ {[%emt 0:03:06]} 16. Kh1 {[%emt 0:04:02]} b6 {[%emt 0:00:35]} 17. f5 {[%emt 0:02:39]} Bb7 {[%emt 0:04:00]} 18. g5 {[%emt 0:09:34]} Nc5 {[%emt 0:14:00]} 19. f6 {[%emt 0:04:14]} g6 {[%emt 0:01:46]} 20. Rf4 {[%emt 0:08:41]} d5 {[%emt 0:09:43]} 21. Rh4 {[%emt 0:12:44]} Bxc3 {[%emt 0:05:54]} 22. Rxh7 {[%emt 0:04:19]} Kxh7 {[%emt 0:00:21]} 23. e5 {[%emt 0:02:38]} Nxd3 {[%emt 0:03:12]} 24. Qxd3 {[%emt 0:00:55]} Rh8 {[%emt 0:01:18]} 25. bxc3 {[%emt 0:05:17]} d4+ {[%emt 0:00:10]} 26. Kg1 {[%emt 0:00:04]} Qc6 {[%emt 0:00:04]} 27. Qh3+ {[%emt 0:01:38]} Kg8 {[%emt 0:00:05]} 0-1

[Event "FIDE World Junior U20-ch Girls 2025"]
[Site "Petrovac"]
[Date "2025.02.26"]
[Round "2.6"]
[White "Kairbekova, Amina"]
[Black "Kanyamarala, Trisha"]
[Result "1-0"]
[Annotator "ChessBase"]
[ECO "B43"]
[WhiteElo "2336"]
[BlackElo "2178"]
[PlyCount "69"]
[EventDate "2025.02.23"]
[EventType "swiss"]
[EventCountry "MNE"]
[SourceTitle "playchess.com"]
[Source "ChessBase"]
[SourceQuality "1"]
[TimeControl "40/5400+30:1800+30"]

1. e4 {[%emt 0:00:01]} c5 {[%emt 0:00:15]} 2. Nf3 {[%emt 0:00:04]} e6 {[%emt 0:00:21]} 3. d4 {[%emt 0:00:05]} cxd4 {[%emt 0:00:14]} 4. Nxd4 {[%emt 0:00:04]} a6 {[%emt 0:00:12]} 5. Nc3 {[%emt 0:01:13]} b5 {[%emt 0:00:11]} 6. Bd3 {[%emt 0:00:32]} Bb7 {[%emt 0:00:41]} 7. O-O {[%emt 0:00:13]} Nc6 {[%emt 0:00:26]} 8. Nxc6 {[%emt 0:02:49]} Bxc6 {[%emt 0:00:10]} 9. Re1 {[%emt 0:00:36]} Qb8 {[%emt 0:00:49]} 10. a4 {[%emt 0:14:34]} bxa4 {[%emt 0:00:21]} 11. Qe2 {[%emt 0:09:02]} Bb4 {[%emt 0:14:18]} 12. Qg4 {[%emt 0:02:26]} g6 {[%emt 0:13:10]} 13. Bf4 {[%emt 0:02:07]} d6 {[%emt 0:03:43]} 14. Reb1 {[%emt 0:06:26]} Qb7 {[%emt 0:10:58]} 15. e5 {[%emt 0:04:39]} h5 {[%emt 0:11:19]} 16. Qh3 {[%emt 0:05:28]} d5 {[%emt 0:16:30]} 17. Nxa4 {[%emt 0:00:33]} Bb5 {[%emt 0:08:44]} 18. c3 {[%emt 0:12:14]} Be7 {[%emt 0:01:20]} 19. b4 {[%emt 0:09:21]} g5 {[%emt 0:02:34]} 20. Bd2 {[%emt 0:00:43]} g4 {[%emt 0:03:07]} 21. Qe3 {[%emt 0:02:49]} Nh6 {[%emt 0:01:03]} 22. Nc5 {[%emt 0:03:54]} Qc6 {[%emt 0:03:50]} 23. Bc2 {[%emt 0:10:21]} Nf5 {[%emt 0:04:05]} 24. Bxf5 {[%emt 0:00:29]} Bxc5 {[%emt 0:00:40]} 25. bxc5 {[%emt 0:00:04]} exf5 {[%emt 0:00:05]} 26. e6 {[%emt 0:00:37]} f6 {[%emt 0:03:28]} 27. Qf4 {[%emt 0:01:32]} Ke7 {[%emt 0:00:47]} 28. Qxf5 {[%emt 0:00:09]} Rag8 {[%emt 0:00:31]} 29. Bf4 {[%emt 0:00:50]} Qxc5 {[%emt 0:00:30]} 30. c4 {[%emt 0:00:06]} Qxc4 {[%emt 0:00:36]} 31. Rc1 {[%emt 0:00:06]} Qd4 {[%emt 0:00:28]} 32. Rc7+ {[%emt 0:00:50]} Ke8 {[%emt 0:00:03]} 33. Rac1 {[%emt 0:00:05]} Bc4 {[%emt 0:00:51]} 34. e7 {[%emt 0:00:31]} Kf7 {[%emt 0:00:33]} 35. e8=Q+ {[%emt 0:00:09]} 1-0

[Event "FIDE World Junior U20-ch Girls 2025"]
[Site "Petrovac"]
[Date "2025.02.26"]
[Round "2.7"]
[White "Abdinova, Narmin"]
[Black "Savitha Shri B"]
[Result "0-1"]
[Annotator "ChessBase"]
[ECO "A62"]
[WhiteElo "2186"]
[BlackElo "2332"]
[PlyCount "124"]
[EventDate "2025.02.23"]
[EventType "swiss"]
[EventCountry "MNE"]
[SourceTitle "playchess.com"]
[Source "ChessBase"]
[SourceQuality "1"]
[TimeControl "40/5400+30:1800+30"]

1. d4 {[%emt 0:00:22]} Nf6 {[%emt 0:03:42]} 2. c4 {[%emt 0:00:13]} e6 {[%emt 0:00:03]} 3. g3 {[%emt 0:00:42]} c5 {[%emt 0:00:03]} 4. d5 {[%emt 0:00:00]} exd5 {[%emt 0:00:08]} 5. cxd5 {[%emt 0:00:00]} d6 {[%emt 0:00:05]} 6. Nc3 {[%emt 0:00:10]} g6 {[%emt 0:00:04]} 7. Bg2 {[%emt 0:00:08]} Bg7 {[%emt 0:00:04]} 8. Nf3 {[%emt 0:00:06]} O-O {[%emt 0:00:04]} 9. O-O {[%emt 0:00:06]} a6 {[%emt 0:00:40]} 10. a4 {[%emt 0:00:26]} Re8 {[%emt 0:00:04]} 11. Bf4 {[%emt 0:05:01]} h6 {[%emt 0:00:30]} 12. Qc1 {[%emt 0:02:16]} g5 {[%emt 0:00:47]} 13. Bd2 {[%emt 0:00:03]} Bf5 {[%emt 0:00:04]} 14. h4 {[%emt 0:00:15]} g4 {[%emt 0:00:04]} 15. Nh2 {[%emt 0:00:35]} Kh7 {[%emt 0:00:04]} 16. Re1 {[%emt 0:11:16]} Nbd7 {[%emt 0:03:01]} 17. e4 {[%emt 0:13:36]} Bg6 {[%emt 0:00:11]} 18. Bf4 {[%emt 0:00:18]} Ne5 {[%emt 0:04:49]} 19. Qd1 {[%emt 0:05:09]} Qd7 {[%emt 0:04:12]} 20. a5 {[%emt 0:04:17]} Rad8 {[%emt 0:18:50]} 21. Na4 {[%emt 0:23:10]} Qb5 {[%emt 0:26:59]} 22. Bxe5 {[%emt 0:02:45]} Rxe5 {[%emt 0:00:04]} 23. Nxg4 {[%emt 0:03:09]} Nxg4 {[%emt 0:03:40]} 24. Qxg4 {[%emt 0:00:02]} Rde8 {[%emt 0:08:23]} 25. f4 {[%emt 0:05:52]} Bf5 {[%emt 0:02:14]} 26. Qd1 {[%emt 0:07:43]} Rxe4 {[%emt 0:11:24]} 27. Bxe4 {[%emt 0:00:42]} Rxe4 {[%emt 0:00:03]} 28. Rxe4 {[%emt 0:02:00]} Bxe4 {[%emt 0:00:02]} 29. Qd2 {[%emt 0:03:19]} Qc4 {[%emt 0:09:48]} 30. Nc3 {[%emt 0:00:56]} Bxc3 {[%emt 0:01:51]} 31. bxc3 {[%emt 0:00:02]} Bxd5 {[%emt 0:00:21]} 32. Rd1 {[%emt 0:02:04]} Be4 {[%emt 0:00:56]} 33. Re1 {[%emt 0:04:27]} d5 {[%emt 0:00:08]} 34. g4 {[%emt 0:04:47]} Qa4 {[%emt 0:00:21]} 35. Qb2 {[%emt 0:01:12]} Qd7 {[%emt 0:01:06]} 36. Qe2 {[%emt 0:00:39]} Qc7 {[%emt 0:00:04]} 37. Qd2 {[%emt 0:00:40]} Qxa5 {[%emt 0:01:14]} 38. Kf2 {[%emt 0:00:26]} Qd8 {[%emt 0:00:52]} 39. Kg3 {[%emt 0:00:24]} Qa5 {[%emt 0:01:12]} 40. Qb2 {[%emt 0:00:38]} b5 {[%emt 0:01:14]} 41. g5 {[%emt 0:06:03]} h5 {[%emt 0:05:13]} 42. Re3 {[%emt 0:03:47]} Qa4 {[%emt 0:03:31]} 43. Re1 {[%emt 0:04:17]} Qc4 {[%emt 0:00:59]} 44. Qd2 {[%emt 0:04:23]} a5 {[%emt 0:02:40]} 45. Kf2 {[%emt 0:01:08]} Kg6 {[%emt 0:02:43]} 46. Qe3 {[%emt 0:04:30]} a4 {[%emt 0:03:08]} 47. Qh3 {[%emt 0:01:16]} Bd3 {[%emt 0:06:28]} 48. Qe3 {[%emt 0:02:49]} Be4 {[%emt 0:02:56]} 49. Qh3 {[%emt 0:00:04]} a3 {[%emt 0:02:25]} 50. Qc8 {[%emt 0:02:18]} Qxc3 {[%emt 0:00:37]} 51. f5+ {[%emt 0:00:18]} Kg7 {[%emt 0:02:12]} 52. f6+ {[%emt 0:00:31]} Kg6 {[%emt 0:00:25]} 53. Qg8+ {[%emt 0:00:54]} Kf5 {[%emt 0:00:04]} 54. Qc8+ {[%emt 0:02:07]} Kf4 {[%emt 0:00:05]} 55. Qc7+ {[%emt 0:00:35]} Qe5 {[%emt 0:01:29]} 56. Qxc5 {[%emt 0:00:59]} a2 {[%emt 0:01:25]} 57. Qc1+ {[%emt 0:02:15]} Kf5 {[%emt 0:00:06]} 58. Qc8+ {[%emt 0:00:07]} Qe6 {[%emt 0:00:44]} 59. Qc5 {[%emt 0:01:11]} Kg6 {[%emt 0:00:29]} 60. Qa7 {[%emt 0:00:31]} Qf5+ {[%emt 0:00:09]} 61. Kg1 {[%emt 0:00:30]} Qg4+ {[%emt 0:00:05]} 62. Kf2 {[%emt 0:00:06]} Qf3+ {[%emt 0:00:02]} 0-1

[Event "FIDE World Junior U20-ch Girls 2025"]
[Site "Petrovac"]
[Date "2025.02.26"]
[Round "2.8"]
[White "Velpula Sarayu"]
[Black "Smietanska, Wiktoria"]
[Result "1-0"]
[Annotator "RC"]
[ECO "C83"]
[WhiteElo "2315"]
[BlackElo "2170"]
[PlyCount "97"]
[EventDate "2025.02.23"]
[EventType "swiss"]
[EventCountry "MNE"]
[SourceTitle "playchess.com"]
[Source "ChessBase"]
[SourceQuality "1"]
[TimeControl "40/5400+30:1800+30"]

1. e4 {[%emt 0:00:26]} e5 {[%emt 0:00:11]} 2. Nf3 {[%emt 0:00:37]} Nc6 {[%emt 0:00:12]} 3. Bb5 {[%emt 0:00:29]} a6 {[%emt 0:00:10]} 4. Ba4 {[%emt 0:00:30]} Nf6 {[%emt 0:00:10]} 5. O-O {[%emt 0:00:33]} Nxe4 {[%emt 0:00:15]} 6. d4 {[%emt 0:00:59]} b5 {[%emt 0:00:22]} 7. Bb3 {[%emt 0:00:20]} d5 {[%emt 0:00:16]} 8. dxe5 {[%emt 0:00:34]} Be6 {[%emt 0:00:13]} 9. c3 {[%emt 0:01:31]} Be7 {[%emt 0:00:18]} 10. Nbd2 {[%emt 0:04:35]} O-O {[%emt 0:00:24]} 11. Bc2 {[%emt 0:01:42]} f5 {[%emt 0:00:52]} 12. Nb3 {[%emt 0:00:51]} Qd7 {[%emt 0:08:24]} 13. Nbd4 {[%emt 0:07:22]} Nxd4 {[%emt 0:04:41]} 14. Nxd4 {[%emt 0:00:20]} c5 {[%emt 0:01:32]} 15. Nxe6 {[%emt 0:01:07]} Qxe6 {[%emt 0:00:03]} 16. f3 {[%emt 0:00:20]} Ng5 {[%emt 0:00:42]} 17. Bf4 {[%emt 0:00:33]} Qc6 {[%emt 0:07:57]} 18. Bxg5 {[%emt 0:05:08]} Bxg5 {[%emt 0:00:04]} 19. f4 {[%emt 0:00:26]} Be7 {[%emt 0:00:41]} 20. Qf3 {[%emt 0:04:39]} Rad8 {[%emt 0:09:03]} 21. Rfd1 {[%emt 0:03:13]} c4 {[%emt 0:08:31]} 22. Kh1 {[%emt 0:02:56]} Qe6 {[%emt 0:06:53]} 23. b4 {[%emt 0:11:58]} Rd7 {[%emt 0:05:43]} 24. a4 {[%emt 0:04:11]} Bd8 {[%emt 0:03:59]} 25. a5 {[%emt 0:15:46]} Bc7 {[%emt 0:02:28]} 26. Rd2 {[%emt 0:06:29]} Rfd8 {[%emt 0:02:08]} 27. Rad1 {[%emt 0:03:05]} Bb8 {[%emt 0:01:54]} 28. h3 {[%emt 0:01:15]} g6 {[%emt 0:06:36]} 29. g4 {[%emt 0:06:10]} Ba7 {[%emt 0:03:38]} 30. gxf5 {[%emt 0:04:13]} gxf5 {[%emt 0:00:13]} 31. Qh5 {[%emt 0:00:52]} Rf8 {[%emt 0:02:42]} 32. Rg2+ {[%emt 0:01:06]} Kh8 {[%emt 0:06:05]} 33. Rg5 {[%emt 0:02:37]} Rdf7 {[%emt 0:00:50]} 34. Kh2 {[%emt 0:02:55]} Qd7 {[%emt 0:05:28]} 35. Rg6 {[%emt 0:04:41]} Be3 {[%emt 0:03:20]} 36. Rf1 {[%emt 0:01:47]} Rg7 {[%emt 0:03:00]} 37. Rxg7 {[%emt 0:01:00]} Kxg7 {[%emt 0:01:39]} 38. Qf3 {[%emt 0:01:33]} Ba7 {[%emt 0:05:22]} 39. Rd1 {[%emt 0:00:36]} Rd8 {[%emt 0:00:43]} 40. Qh5 {[%emt 0:00:28]} Rf8 {[%emt 0:00:52]} 41. Qg5+ {[%emt 0:30:24]} Kh8 {[%emt 0:30:25]} 42. Qh6 {[%emt 0:00:23]} Qf7 {[%emt 0:00:00]} 43. e6 {[%emt 0:00:00]} Qe7 {[%emt 0:00:00]} 44. Rxd5 {[%emt 0:00:00]} Rd8 {[%emt 0:00:00]} 45. Rxf5 {[%emt 0:00:00]} Rd2+ {[%emt 0:00:00]} 46. Kg3 {[%emt 0:00:00]} Bf2+ {[%emt 0:00:00]} 47. Kg4 {[%emt 0:00:00]} Qg7+ {[%emt 0:00:00]} 48. Qxg7+ {[%emt 0:00:00]} Kxg7 {[%emt 0:00:00]} 49. Rf7+ {[%emt 0:00:00]} 1-0

[Event "FIDE World Junior U20-ch Girls 2025"]
[Site "Petrovac"]
[Date "2025.02.26"]
[Round "2.9"]
[White "Wang, Qinxuanyi"]
[Black "Toncheva, Nadya"]
[Result "0-1"]
[Annotator "ChessBase"]
[ECO "D20"]
[WhiteElo "2165"]
[BlackElo "2311"]
[PlyCount "98"]
[EventDate "2025.02.23"]
[EventType "swiss"]
[EventCountry "MNE"]
[SourceTitle "playchess.com"]
[Source "ChessBase"]
[SourceQuality "1"]
[TimeControl "40/5400+30:1800+30"]

1. d4 {[%emt 0:00:41]} d5 {[%emt 0:00:06]} 2. c4 {[%emt 0:00:07]} dxc4 {[%emt 0:00:12]} 3. e4 {[%emt 0:00:07]} e5 {[%emt 0:00:05]} 4. Nf3 {[%emt 0:00:05]} Bb4+ {[%emt 0:00:05]} 5. Nc3 {[%emt 0:00:05]} exd4 {[%emt 0:00:05]} 6. Nxd4 {[%emt 0:00:06]} Nd7 {[%emt 0:00:30]} 7. Bxc4 {[%emt 0:00:09]} Ngf6 {[%emt 0:00:03]} 8. f3 {[%emt 0:00:28]} O-O {[%emt 0:00:07]} 9. Be2 {[%emt 0:00:37]} Ne5 {[%emt 0:04:34]} 10. O-O {[%emt 0:00:42]} Qe7 {[%emt 0:00:15]} 11. Bg5 {[%emt 0:00:26]} Bxc3 {[%emt 0:01:35]} 12. bxc3 {[%emt 0:00:06]} Ng6 {[%emt 0:00:19]} 13. Nb3 {[%emt 0:08:33]} Be6 {[%emt 0:07:27]} 14. Qc1 {[%emt 0:01:59]} h6 {[%emt 0:02:15]} 15. Be3 {[%emt 0:02:49]} b6 {[%emt 0:00:36]} 16. Re1 {[%emt 0:04:44]} c5 {[%emt 0:01:00]} 17. Nd2 {[%emt 0:02:07]} Qc7 {[%emt 0:09:18]} 18. Nf1 {[%emt 0:08:07]} Rad8 {[%emt 0:06:55]} 19. Ng3 {[%emt 0:00:52]} Rfe8 {[%emt 0:06:36]} 20. f4 {[%emt 0:05:52]} Bc8 {[%emt 0:05:02]} 21. Bf3 {[%emt 0:01:03]} Bb7 {[%emt 0:03:44]} 22. Bd2 {[%emt 0:25:40]} Qd7 {[%emt 0:06:48]} 23. Re2 {[%emt 0:03:52]} Qd3 {[%emt 0:04:10]} 24. Qb1 {[%emt 0:05:42]} Nh4 {[%emt 0:04:17]} 25. Qxd3 {[%emt 0:05:34]} Rxd3 {[%emt 0:00:05]} 26. Kf2 {[%emt 0:00:31]} Red8 {[%emt 0:04:33]} 27. Nf1 {[%emt 0:02:05]} Ba6 {[%emt 0:02:15]} 28. e5 {[%emt 0:04:42]} Nxf3 {[%emt 0:00:53]} 29. gxf3 {[%emt 0:01:21]} Nh5 {[%emt 0:01:18]} 30. Be3 {[%emt 0:03:24]} Rxc3 {[%emt 0:02:15]} 31. Rd2 {[%emt 0:00:06]} Re8 {[%emt 0:07:25]} 32. Ng3 {[%emt 0:06:31]} Nxg3 {[%emt 0:00:09]} 33. hxg3 {[%emt 0:00:02]} f6 {[%emt 0:00:55]} 34. Rd7 {[%emt 0:02:42]} fxe5 {[%emt 0:01:32]} 35. f5 {[%emt 0:00:55]} Bc8 {[%emt 0:00:16]} 36. Rxa7 {[%emt 0:00:18]} Bxf5 {[%emt 0:00:07]} 37. g4 {[%emt 0:00:41]} Rc2+ {[%emt 0:01:11]} 38. Kg3 {[%emt 0:00:15]} Be6 {[%emt 0:04:26]} 39. a4 {[%emt 0:02:22]} Rc3 {[%emt 0:03:20]} 40. Re1 {[%emt 0:03:23]} Rf8 {[%emt 0:00:17]} 41. Re7 {[%emt 0:30:30]} Bd5 {[%emt 0:30:15]} 42. Rxe5 {[%emt 0:00:33]} Rxf3+ {[%emt 0:00:39]} 43. Kh4 {[%emt 0:00:32]} Rc2 {[%emt 0:00:35]} 44. Bg1 {[%emt 0:00:00]} g5+ {[%emt 0:00:00]} 45. Kh5 {[%emt 0:00:00]} Kg7 {[%emt 0:00:00]} 46. Re7+ {[%emt 0:00:00]} Bf7+ {[%emt 0:00:00]} 47. Rxf7+ {[%emt 0:00:00]} Kxf7 {[%emt 0:00:00]} 48. Kxh6 {[%emt 0:00:00]} Kf6 {[%emt 0:00:00]} 49. Kh7 {[%emt 0:00:00]} Rd2 {[%emt 0:00:00]} 0-1

[Event "FIDE World Junior U20-ch Girls 2025"]
[Site "Petrovac"]
[Date "2025.02.26"]
[Round "2.10"]
[White "Zhurova, Anna"]
[Black "Yildiz, Elif Zeren"]
[Result "1-0"]
[Annotator "ChessBase"]
[ECO "B53"]
[WhiteElo "2307"]
[BlackElo "2160"]
[PlyCount "51"]
[EventDate "2025.02.23"]
[EventType "swiss"]
[EventCountry "MNE"]
[SourceTitle "playchess.com"]
[Source "ChessBase"]
[SourceQuality "1"]
[TimeControl "40/5400+30:1800+30"]

1. e4 {[%emt 0:00:01]} c5 {[%emt 0:00:14]} 2. Nf3 {[%emt 0:00:29]} d6 {[%emt 0:00:07]} 3. d4 {[%emt 0:00:10]} cxd4 {[%emt 0:00:06]} 4. Qxd4 {[%emt 0:00:13]} Nc6 {[%emt 0:00:40]} 5. Bb5 {[%emt 0:00:34]} Bd7 {[%emt 0:00:06]} 6. Qd3 {[%emt 0:00:44]} e5 {[%emt 0:07:13]} 7. Nc3 {[%emt 0:01:48]} h6 {[%emt 0:01:31]} 8. Bc4 {[%emt 0:07:52]} Na5 {[%emt 0:12:49]} 9. Bd5 {[%emt 0:03:00]} Nf6 {[%emt 0:00:54]} 10. O-O {[%emt 0:00:38]} a6 {[%emt 0:05:28]} 11. b4 {[%emt 0:12:10]} Nc6 {[%emt 0:02:11]} 12. a3 {[%emt 0:03:05]} Nxd5 {[%emt 0:07:55]} 13. Nxd5 {[%emt 0:01:02]} Ne7 {[%emt 0:07:53]} 14. Ne3 {[%emt 0:01:28]} Ng6 {[%emt 0:05:20]} 15. Nf5 {[%emt 0:02:20]} Qc7 {[%emt 0:03:03]} 16. Rd1 {[%emt 0:03:40]} Rc8 {[%emt 0:04:35]} 17. Be3 {[%emt 0:04:34]} Be6 {[%emt 0:07:57]} 18. Rac1 {[%emt 0:02:07]} Rd8 {[%emt 0:06:57]} 19. c4 {[%emt 0:00:44]} f6 {[%emt 0:06:12]} 20. a4 {[%emt 0:03:00]} Qf7 {[%emt 0:03:51]} 21. c5 {[%emt 0:11:00]} d5 {[%emt 0:02:20]} 22. exd5 {[%emt 0:01:20]} Rxd5 {[%emt 0:00:20]} 23. Qe4 {[%emt 0:04:47]} Be7 {[%emt 0:04:58]} 24. Rxd5 {[%emt 0:06:59]} Bxd5 {[%emt 0:00:07]} 25. Qg4 {[%emt 0:00:25]} O-O {[%emt 0:02:26]} 26. Qxg6 {[%emt 0:00:13]} 1-0

[Event "FIDE World Junior U20-ch Girls 2025"]
[Site "Petrovac"]
[Date "2025.02.26"]
[Round "2.11"]
[White "Cornileau, Juliette"]
[Black "Karmanova, Olga Dm."]
[Result "0-1"]
[Annotator "ChessBase"]
[ECO "B12"]
[WhiteElo "2144"]
[BlackElo "2292"]
[PlyCount "100"]
[EventDate "2025.02.23"]
[EventType "swiss"]
[EventCountry "MNE"]
[SourceTitle "playchess.com"]
[Source "ChessBase"]
[SourceQuality "1"]
[TimeControl "40/5400+30:1800+30"]

1. e4 {[%emt 0:00:04]} c6 {[%emt 0:00:03]} 2. d4 {[%emt 0:00:18]} d5 {[%emt 0:00:06]} 3. e5 {[%emt 0:00:09]} Bf5 {[%emt 0:00:08]} 4. h4 {[%emt 0:00:10]} h5 {[%emt 0:00:07]} 5. c4 {[%emt 0:00:44]} e6 {[%emt 0:02:04]} 6. Nc3 {[%emt 0:00:12]} Ne7 {[%emt 0:02:26]} 7. Nge2 {[%emt 0:00:33]} Nd7 {[%emt 0:03:40]} 8. Ng3 {[%emt 0:01:00]} Bg6 {[%emt 0:01:42]} 9. Bg5 {[%emt 0:00:38]} Qb6 {[%emt 0:05:58]} 10. Rc1 {[%emt 0:00:50]} Nf5 {[%emt 0:07:57]} 11. Nxf5 {[%emt 0:01:39]} Bxf5 {[%emt 0:00:08]} 12. cxd5 {[%emt 0:02:07]} exd5 {[%emt 0:02:22]} 13. Bd3 {[%emt 0:21:00]} Be6 {[%emt 0:02:47]} 14. Be2 {[%emt 0:09:25]} g6 {[%emt 0:07:36]} 15. Qd2 {[%emt 0:15:00]} a5 {[%emt 0:05:08]} 16. O-O {[%emt 0:02:36]} Bg7 {[%emt 0:01:25]} 17. f4 {[%emt 0:11:29]} a4 {[%emt 0:12:27]} 18. Kh1 {[%emt 0:07:03]} Bf5 {[%emt 0:06:25]} 19. Qe3 {[%emt 0:01:40]} O-O {[%emt 0:04:01]} 20. Bd3 {[%emt 0:00:54]} a3 {[%emt 0:07:52]} 21. Bxf5 {[%emt 0:07:37]} gxf5 {[%emt 0:00:05]} 22. bxa3 {[%emt 0:01:32]} Rfe8 {[%emt 0:09:29]} 23. Qd3 {[%emt 0:04:21]} f6 {[%emt 0:06:22]} 24. Qxf5 {[%emt 0:04:21]} fxg5 {[%emt 0:00:05]} 25. Qxd7 {[%emt 0:00:42]} Qxd4 {[%emt 0:00:49]} 26. Nb5 {[%emt 0:01:24]} Qd3 {[%emt 0:04:23]} 27. Nd6 {[%emt 0:01:15]} Rf8 {[%emt 0:00:04]} 28. Qe6+ {[%emt 0:00:30]} Kh7 {[%emt 0:00:05]} 29. hxg5 {[%emt 0:03:31]} Rxa3 {[%emt 0:00:37]} 30. f5 {[%emt 0:01:39]} Ra4 {[%emt 0:00:37]} 31. Qg6+ {[%emt 0:00:32]} Kg8 {[%emt 0:00:06]} 32. Qxh5 {[%emt 0:00:35]} Qg3 {[%emt 0:01:00]} 33. Nc4 {[%emt 0:00:57]} Rxa2 {[%emt 0:03:50]} 34. Ne3 {[%emt 0:00:29]} Ra4 {[%emt 0:04:19]} 35. Nc4 {[%emt 0:00:31]} Ra2 {[%emt 0:00:50]} 36. Ne3 {[%emt 0:00:30]} Ra4 {[%emt 0:00:04]} 37. Nc4 {[%emt 0:00:29]} Ra2 {[%emt 0:00:05]} 38. Rg1 {[%emt 0:00:33]} Rxf5 {[%emt 0:01:12]} 39. Qe8+ {[%emt 0:00:24]} Rf8 {[%emt 0:00:26]} 40. Qe6+ {[%emt 0:00:11]} Kh8 {[%emt 0:00:23]} 41. Nd6 {[%emt 0:30:35]} Ra4 {[%emt 0:31:13]} 42. Nc4 {[%emt 0:00:00]} Rxc4 {[%emt 0:00:00]} 43. Rxc4 {[%emt 0:00:00]} dxc4 {[%emt 0:00:00]} 44. Rd1 {[%emt 0:00:00]} c3 {[%emt 0:00:00]} 45. Qg6 {[%emt 0:00:00]} c2 {[%emt 0:00:00]} 46. Rc1 {[%emt 0:00:00]} Qh4+ {[%emt 0:00:00]} 47. Kg1 {[%emt 0:00:00]} Qd4+ {[%emt 0:00:00]} 48. Kh1 {[%emt 0:00:00]} Qd1+ {[%emt 0:00:00]} 49. Kh2 {[%emt 0:00:00]} Qxc1 {[%emt 0:00:00]} 50. Qh5+ {[%emt 0:00:00]} Kg8 {[%emt 0:00:00]} 0-1